Cogmind - Beta 16 @@@ ROGUE MODE // 2026.01.24 @ 12:26:35 Player: YoKa Result: Smashed by cave-in Performance ------------- Evolutions (3) 1500 Regions Visited (7) 1400 Robots Destroyed (37) 185 Value Destroyed (942) 942 Prototype IDs (30) 600 Alien Tech Used (0) 0 Bonus (325) 325 TOTAL SCORE: 4952 Bonus ------- Follower Combat Kills 25 Aligned with FarCom 300 Cogmind --------- Core Integrity 0/700 Matter 300/300 Energy 99/100 System Corruption 3% Temperature Cool (0) Movement Core (50) Location -7/Storage Parts ------- > --- POWER (1) -------- (None) > --- PROPULSION (4) --- (None) > --- UTILITY (6) ------ Hacking Suite System Shield > --- WEAPON (2) ------- Axe > --- INVENTORY (5) ---- Bomb Drone Bay (16/16) Rocket Array Great Maul Peak State ------------ > --- POWER ------------ Ion Engine > --- PROPULSION ------- Flying Fortress v7 > --- UTILITY ---------- Medium Storage Unit Hacking Suite Bomb Drone Bay > --- WEAPON ----------- Beam Cannon Bore Cannon > --- INVENTORY -------- Light Treads Light Treads Advanced ECM Suite Ion Cannon Improved Datajack [Rating: 58] Favorites ----------- Power Ion Engine Engine Ion Engine Power Core Light Nuclear Core Propulsion Light Treads Treads Light Treads Hover Unit Aerolev Unit Flight Unit Flying Fortress v7 Utility Hacking Suite Device Transmission Jammer Storage Medium Storage Unit Hackware Hacking Suite Weapon Assault Rifle Energy Gun Small Laser Energy Cannon Plasma Cannon Ballistic Gun Assault Rifle Ballistic Cannon Bore Cannon Launcher Grenade Launcher Impact Weapon Great Maul Slashing Weapon Axe Special Melee Weapon Improved Datajack Build | -11 -10 -10 -10 -9 -8 -7 -7 ------- Run | Yrd Mat Min Exi Min Mat Fac Sto Slots Evolved 6 | . . . . . 4 2 . Power . | . . . . . . . . Propulsion 2 | . . . . . 2 . . Utility 4 | . . . . . 2 2 . Weapon . | . . . . . . . . Parts Attached 42 | 6 2 . 2 2 12 13 5 Power 6 | 1 . . . . 2 2 1 Engine 3 | 1 . . . . 1 . 1 Core 3 | . . . . . 1 2 . Reactor . | . . . . . . . . Propulsion 10 | 2 . . . . 1 6 1 Treads 2 | 2 . . . . . . . Leg . | . . . . . . . . Wheel . | . . . . . . . . Hover 4 | . . . . . . 4 . Flight 4 | . . . . . 1 2 1 Utility 12 | 1 1 . 2 . 4 3 1 Device 3 | . . . . . 2 1 . Storage 3 | 1 1 . 1 . . . . Processor . | . . . . . . . . Hackware 6 | . . . 1 . 2 2 1 Protection . | . . . . . . . . Artifact . | . . . . . . . . Weapon 14 | 2 1 . . 2 5 2 2 Energy Gun 1 | 1 . . . . . . . Energy Cannon 4 | . . . . 1 2 1 . Ballistic Gun 1 | 1 . . . . . . . Ballistic Cannon 1 | . . . . 1 . . . Launcher 4 | . 1 . . . 1 . 2 Special Weapon . | . . . . . . . . Impact Weapon 1 | . . . . . 1 . . Slashing Weapon 1 | . . . . . . 1 . Piercing Weapon . | . . . . . . . . Special Melee Weapon 1 | . . . . . 1 . . Unidentified Prototypes 6 | . . . . . 1 1 4 Parts Lost 19 | . . . . 1 5 6 7 Power 4 | . . . . . 2 1 1 Propulsion 8 | . . . . . 1 4 3 Utility 5 | . . . . . 1 1 3 Weapon 2 | . . . . 1 1 . . Highest Loss Streak 6 | . . . . 1 2 6 4 To Critical Strikes . | . . . . . . . . Average Backups 4 | 1 3 4 2 2 8 3 3 Power . | . 1 1 . . . . . Propulsion . | . . . . 1 1 . . Utility 1 | . . 1 . . 2 1 1 Weapon 2 | . 1 2 1 . 4 1 2 Tool/Special . | . . . . . . . . Unused Backups 8 | . . . 2 . . 1 5 Power 1 | . . . 1 . . . . Propulsion . | . . . . . . . . Utility 4 | . . . . . . 1 3 Weapon 3 | . . . 1 . . . 2 Tool/Special . | . . . . . . . . Average Slot Usage (%) 74 | . 85 85 92 99 64 61 62 Engine 7 | . 14 14 14 14 4 . 5 Core 2 | . . . . . 3 5 . Treads 10 | . 28 28 28 28 . . . Hover 2 | . . . . . . 11 . Flight 5 | . . . . . 8 2 18 Device 2 | . . . . . 4 4 1 Storage 8 | . 14 14 14 14 9 . . Hackware 16 | . . . 7 14 17 29 27 Energy Cannon 3 | . . . . 1 8 2 . Ballistic Gun 5 | . 14 14 14 12 . . . Launcher 5 | . 13 14 14 12 . . . Special Melee Weapon 1 | . . . . . 5 . . Peak Build Rating 58 | 6 7 6 12 17 58 44 51 Average Rating 28 | 3 6 6 8 13 52 28 30 On Entrance 11 | . 6 6 6 12 17 23 25 Avg Prop Armor Cover (%) 12 | . . . . . . 12 . Naked Turns . | . . . . . . . . Heaviest Build 35 | 13 15 13 20 27 35 17 26 Greatest Support 50 | 40 40 40 40 40 50 34 14 Greatest Overweight (x) 10 | . . . . . 10 5 1 Average Overweight (x) . | . . . . . . . . Largest Inventory Capacity 10 | 8 8 5 10 10 10 10 5 Average Capacity 7 | 6 7 5 5 10 10 5 5 Most Carried 10 | 5 5 4 5 8 10 9 5 Average Carried 5 | 2 3 4 3 6 9 4 4 Final Capacity 10 | 8 5 5 10 10 10 5 5 Final Carried 9 | 2 4 4 4 6 9 5 4 Class Distribution -------------------- 54% | Hacker-Mutant 40% | Mutant 4% | Hacker-Sprinter Dominant Class ---------------- Mutant | -10/Materials Mutant | -10/Mines Mutant | -10/Exiles Mutant | -9/Mines Hacker-Mutant | -8/Materials Hacker-Mutant | -7/Factory Hacker-Sprinter | -7/Storage Resources | -11 -10 -10 -10 -9 -8 -7 -7 ----------- Run | Yrd Mat Min Exi Min Mat Fac Sto Matter Collected 949 | 203 215 50 . 63 183 160 75 Remotely . | . . . . . . . . Salvage Created 1159 | . 251 12 . 46 339 387 124 Parts 63 | . 20 3 . 3 24 4 9 Haulers Intercepted . | . . . . . . . . Recyclers Shooed . | . . . . . . . . Parts Field Recycled . | . . . . . . . . Retrieved Matter . | . . . . . . . . Parts Self-Destructed . | . . . . . . . . Prevented . | . . . . . . . . Parts Restored . | . . . . . . . . Kills | -11 -10 -10 -10 -9 -8 -7 -7 ------- Run | Yrd Mat Min Exi Min Mat Fac Sto Combat Hostiles Destroyed 21 | . 5 3 . 1 6 4 2 Melee 4 | . . . . . . 2 2 Guns 5 | . 5 . . . . . . Cannons 7 | . . . . 1 6 . . AOE 3 | . . 3 . . . . . Classes Destroyed 11 | . 4 1 . . 2 4 . Worker 3 | . . . . . . 2 1 Builder 1 | . 1 . . . . . . Tunneler 1 | . . . . . . 1 . Recycler 4 | . . . . . . 4 . Operator 4 | . 1 . . . 3 . . Watcher 3 | . 2 . . . 1 . . Swarmer 8 | . . 3 . . 2 3 . Grunt 6 | . 5 . . 1 . . . Sentry 2 | . . . . . 1 . 1 Hunter 3 | . . . . . 3 . . Programmer 2 | . . . . . . 1 1 Best Kill Streak 5 | . 3 3 . 1 3 5 1 Combat Bots Only 3 | . 2 3 . 1 2 2 1 Max Kills in Single Turn 1 | . 1 1 . 1 1 1 1 Gunslinging . | . . . . . . . . Exploded 1 | . . 1 . . . . . Melee 1 | . . . . . . 1 1 Uniques/NPCs Destroyed . | . . . . . . . . Combat | -11 -10 -10 -10 -9 -8 -7 -7 -------- Run | Yrd Mat Min Exi Min Mat Fac Sto Hostile Shots Fired 360 | . 33 8 . 11 114 102 92 Missed 136 | . 16 3 . 2 50 33 32 Hits 224 | . 17 5 . 9 64 69 60 Melee 3 | . . . . 3 . . . Projectile 221 | . 17 5 . 6 64 69 60 AOE 1 | . . . . . . . 1 Critical Strikes 10 | . 1 1 . 2 3 2 1 Damage Taken 3630 | . 246 40 . 169 1533 898 744 Core 1070 | . 51 15 . 10 277 317 400 Absorbed by Shields . | . . . . . . . . Core Remaining (%) 72 | 100 . . . 69 49 . . Volleys Fired 121 | . 47 5 . 8 61 . . Largest 2 | . 1 1 . 1 2 . . Hottest 108 | . 30 30 . 60 108 . . Shots Fired 123 | . 47 5 . 8 63 . . Gun 46 | . 46 . . . . . . Cannon 70 | . . . . 8 62 . . Launcher 7 | . 1 5 . . 1 . . Special . | . . . . . . . . Kinetic 56 | . 46 . . 5 5 . . Thermal 60 | . . . . 3 57 . . Explosive 7 | . 1 5 . . 1 . . Electromagnetic . | . . . . . . . . Robot Hit Streak 7 | . 7 . . 3 4 . . Robot Miss Streak 4 | . 2 . . 3 4 . . Penetration Max . | . . . . . . . . Secondary Targets . | . . . . . . . . Shots Hit Robots 91 | . 32 . . 4 28 16 11 Core Hits 38 | . 13 3 . 3 14 2 3 Critical Kills 2 | . . . . . 1 1 . Critical Parts Destroyed 8 | . . . . 1 . 7 . Critical Strikes 10 | . . . . 1 1 8 . Meltdown 1 | . . . . . 1 . . Destroy 1 | . . . . 1 . . . Smash 8 | . . . . . . 8 . Melee Attacks 64 | . . . . . 3 29 32 Impact 30 | . . . . . 1 29 . Slashing 32 | . . . . . . . 32 Piercing . | . . . . . . . . Sneak Attacks 14 | . . . . . 3 8 3 Combat Hostiles 1 | . . . . . . . 1 Follow-up Attacks . | . . . . . . . . Damage Inflicted 3037 | . 446 227 . 93 757 1051 463 Guns 406 | . 406 . . . . . . Cannons 658 | . . . . 72 586 . . Explosions 262 | . 39 215 . . 8 . . Melee 1627 | . . . . . 113 1051 463 Ramming 84 | . 1 12 . 21 50 . . Kinetic 424 | . 406 . . 18 . . . Thermal 632 | . . . . 54 578 . . Explosive 262 | . 39 215 . . 8 . . Electromagnetic . | . . . . . . . . Impact 1172 | . . . . . 121 1051 . Slashing 463 | . . . . . . . 463 Piercing . | . . . . . . . . Highest Corruption 10 | . 1 1 1 1 10 . 3 Average Corruption 1 | . 1 1 1 1 7 . 2 Corruption Purged . | . . . . . . . . Corruption Blocked . | . . . . . . . . Effects 13 | . 4 2 5 2 . . . Message Errors 7 | . 2 . 3 2 . . . Matter Fused 2 | . 1 1 . . . . . Energy Discharges 3 | . 1 . 2 . . . . Data Loss (minor) 1 | . . 1 . . . . . Overload Shots . | . . . . . . . . Overflow Damage 794 | . . 14 . . 107 649 24 Projectiles 4 | . . . . . 4 . . Explosions 14 | . . 14 . . . . . Melee 776 | . . . . . 103 649 24 Knockbacks 3 | . . . . . . 3 . Impact 3 | . . . . . . 3 . Kinetic . | . . . . . . . . Secondary . | . . . . . . . . Self-Inflicted Damage 50 | . . . . . 50 . . Shots . | . . . . . . . . Rammed 13 | . 1 3 . 9 . . . Targets Rammed 13 | . 1 3 . 9 . . . Kicked . | . . . . . . . . Crushed . | . . . . . . . . Highest Temperature 339 | . 17 . . 96 339 . 3 Average Temperature 90 | . 8 . . 47 96 . 3 Received Heat Transfer 504 | . 129 . . 36 90 12 237 Siege Activations . | . . . . . . . . Martial Activations . | . . . . . . . . Shielding Activations . | . . . . . . . . Robots Disrupted . | . . . . . . . . Combat Hostiles . | . . . . . . . . Robots Corrupted 5 | . . . . . . 5 . Combat Hostiles 2 | . . . . . . 2 . Parts Fried 11 | . . . . . 3 8 . Impact Corruptions 15 | . . . . . 1 14 . Robots Melted 1 | . . . . . 1 . . Combat Hostiles . | . . . . . . . . Parts Melted 1 | . . . . . . 1 . Heat Transferred 1248 | . . . . 111 1137 . . Parts Sabotaged . | . . . . . . . . Parts Stolen . | . . . . . . . . Parts Stripped . | . . . . . . . . Power Chain Reactions . | . . . . . . . . Alert | -11 -10 -10 -10 -9 -8 -7 -7 ------- Run | Yrd Mat Min Exi Min Mat Fac Sto Maximum Alert Level 1 | . . . . . 1 . . Low Security (%) 95 | 100 100 100 . 100 86 100 100 Level 1 4 | . . . . . 13 . . Level 2 . | . . . . . . . . Level 3 . | . . . . . . . . Level 4 . | . . . . . . . . Level 5 . | . . . . . . . . High Security . | . . . . . . . . Max Security . | . . . . . . . . Peak Influence 278 | . 60 90 . 21 278 118 38 Initial 77 | . . 4 . . . 77 35 Average 43 | . 16 13 . 1 95 32 11 Influence Increases 1520 | . 180 90 . 45 730 327 148 Destroy 0b10 Robot/C 440 | . 100 60 . 40 120 80 40 Destroy 0b10 Robot/NC 80 | . 20 . . . 20 35 5 Destroy Leader 126 | . 24 10 . . 52 20 20 Allied During Kill 2 | . . . . 2 . . . Successful Hack 41 | . 6 . . . 11 24 . Disable Machine 75 | . 30 . . . 30 . 15 Destroy Structure 66 | . . 20 . 3 32 3 8 Partial Spotted 75 | . . . . . 45 15 15 Lose Combat Pursuer 615 | . . . . . 420 150 45 Influence Decreases 1482 | . 167 33 70 45 558 420 189 Entered New Map 218 | . . 9 70 . . 95 44 Time Decay 1014 | . 167 24 . 30 408 271 114 Search Patrol Dispatched 100 | . . . . . 100 . . Lost Part 136 | . . . . 1 50 54 31 Lost Ally 14 | . . . . 14 . . . Squads Dispatched 11 | . 1 . . . 4 5 1 Investigation 3 | . . . . . . 3 . Extermination 3 | . . . . . . 2 1 Reinforcement 5 | . 1 . . . 4 . . Assault . | . . . . . . . . Garrison . | . . . . . . . . Intercept . | . . . . . . . . Searches Triggered 1 | . . . . . 1 . . Construction Impeded . | . . . . . . . . Haulers Reinforced . | . . . . . . . . Active Scanning Responses . | . . . . . . . . Cargo Convoy Interrupts . | . . . . . . . . Stealth | -11 -10 -10 -10 -9 -8 -7 -7 --------- Run | Yrd Mat Min Exi Min Mat Fac Sto Distress Signals 7 | . 1 . . . 5 . 1 Communications Jammed 9 | . . . . . . 9 . Distress Signals . | . . . . . . . . Times Spotted 83 | . 12 3 . 3 43 12 10 Peak Tracking Total 8 | . 2 3 . 3 8 5 6 Tactical Retreats 17 | . . . . . 10 5 2 Traps | -11 -10 -10 -10 -9 -8 -7 -7 ------- Run | Yrd Mat Min Exi Min Mat Fac Sto Traps Triggered 5 | . 2 . . . . 2 1 Indirectly . | . . . . . . . . Trap Hack Attempts . | . . . . . . . . Triggered . | . . . . . . . . Disarmed . | . . . . . . . . Reprogrammed . | . . . . . . . . Reused . | . . . . . . . . Traps Extracted . | . . . . . . . . Installed . | . . . . . . . . Triggered . | . . . . . . . . Machines | -11 -10 -10 -10 -9 -8 -7 -7 ---------- Run | Yrd Mat Min Exi Min Mat Fac Sto Machines Disabled 5 | . 2 . . . 2 . 1 Max in Single Turn 2 | . 2 . . . 1 . 1 Garrison Access 1 | . . . . . . 1 . Machines Repaired . | . . . . . . . . Machines Dismantled . | . . . . . . . . Machines Sabotaged . | . . . . . . . . Overloaded Fab Kills . | . . . . . . . . Hacking | -11 -10 -10 -10 -9 -8 -7 -7 --------- Run | Yrd Mat Min Exi Min Mat Fac Sto Machines Accessed 15 | . 2 . 2 1 4 5 1 Terminals 7 | . 2 . . . 3 1 1 Fabricators 3 | . . . . . . 3 . Repair Stations . | . . . . . . . . Recycling Units . | . . . . . . . . Scanalyzers 1 | . . . . . 1 . . Garrison Access 1 | . . . . . . 1 . Total Hacks 33 | . 4 . 5 1 12 10 1 Successful 24 | . 1 . 5 1 7 9 1 Failed 9 | . 3 . . . 5 1 . Catastrophic 1 | . . . . . 1 . . Database Lockouts . | . . . . . . . . Manual 16 | . 4 . 1 . 8 3 . Terminals 16 | . 4 . . . 8 3 1 Fabricators 6 | . . . . . . 6 . Repair Stations . | . . . . . . . . Recycling Units . | . . . . . . . . Scanalyzers 4 | . . . . . 4 . . Garrison Access 1 | . . . . . . 1 . Terminal Hacks 10 | . . . 5 1 2 1 1 Record 4 | . . . 4 . . . . Open Door 2 | . . . . 1 . . 1 Branch Access Points 1 | . . . . . 1 . . Fabricator Index 1 | . . . . . . 1 . Scanalyzer Index 1 | . . . . . 1 . . Proto ID Catalog 1 | . . . 1 . . . . Fabricator Hacks 6 | . . . . . . 6 . Load Schematic 3 | . . . . . . 3 . Build 3 | . . . . . . 3 . Repair Station Hacks . | . . . . . . . . Recycling Unit Hacks . | . . . . . . . . Scanalyzer 4 | . . . . . 4 . . Insert Component 2 | . . . . . 2 . . Analyze 2 | . . . . . 2 . . Garrison Access Hacks 1 | . . . . . . 1 . Seal Access 1 | . . . . . . 1 . Unauthorized Hacks 3 | . 1 . . . 1 1 . Terminals 3 | . 1 . . . 1 1 . Botnet 1 | . . . . . . 1 . Operators 2 | . 1 . . . 1 . . Fabricators . | . . . . . . . . Repair Stations . | . . . . . . . . Recycling Units . | . . . . . . . . Scanalyzers . | . . . . . . . . Garrison Access . | . . . . . . . . Data Cores Recovered . | . . . . . . . . Used . | . . . . . . . . Hacking Detections 10 | . 2 . . . 4 4 . Full Trace Events 4 | . 1 . . . . 3 . Feedback Events . | . . . . . . . . Feedback Blocked . | . . . . . . . . Robot Schematics Acquired . | . . . . . . . . Robots Built . | . . . . . . . . Authchips . | . . . . . . . . Time . | . . . . . . . . Total Robot Build Rating . | . . . . . . . . Part Schematics Acquired 2 | . . . . . 2 . . Parts Built 3 | . . . . . . 3 . Authchips . | . . . . . . . . Time 204 | . . . . . . 204 . Total Part Build Rating 9 | . . . . . . 9 . Part Studies Acquired . | . . . . . . . . Parts Repaired . | . . . . . . . . Time . | . . . . . . . . Parts Recycled . | . . . . . . . . Recycled Matter . | . . . . . . . . Retrieved Matter . | . . . . . . . . Retrieved Components . | . . . . . . . . Parts Scanalyzed 2 | . . . . . 2 . . Part Schematics Acquired 2 | . . . . . 2 . . Parts Damaged . | . . . . . . . . Bothacking | -11 -10 -10 -10 -9 -8 -7 -7 ------------ Run | Yrd Mat Min Exi Min Mat Fac Sto Used RIF Installer . | . . . . . . . . Robots Hacked 1 | . . . . . 1 . . Non-combat 1 | . . . . . 1 . . Combat . | . . . . . . . . Robot Hacks Applied 2 | . . . . . 2 . . no_distress 1 | . . . . . 1 . . check_alert 1 | . . . . . 1 . . Relay Couplers Released . | . . . . . . . . Fabnet Peak Effective % . | . . . . . . . . Robots Rewired . | . . . . . . . . Allies Hacked . | . . . . . . . . Hacks Repelled . | . . . . . . . . Allies | -11 -10 -10 -10 -9 -8 -7 -7 -------- Run | Yrd Mat Min Exi Min Mat Fac Sto Total Allies 2 | . . . . 2 . . . Largest Group 2 | . . . . 2 . . . Highest-Rated Group 43 | . . . . 43 . . . Highest-Rated Ally 31 | . . . . 31 . . . Total Orders . | . . . . . . . . Ally Attacks 8 | . . . . 8 . . . Total Damage 126 | . . . . 126 . . . Kills 1 | . . . . 1 . . . Allies Corrupted . | . . . . . . . . Allies Melted . | . . . . . . . . Intel | -11 -10 -10 -10 -9 -8 -7 -7 ------- Run | Yrd Mat Min Exi Min Mat Fac Sto Active Infowar (turns) 719 | . . . . . 16 703 . Jamming 703 | . . . . . . 703 . ECM 16 | . . . . . 16 . . Robot Analysis Total . | . . . . . . . . Derelict Logs Recovered 1 | . . . . 1 . . . Drone Launches . | . . . . . . . . Drone Recoveries . | . . . . . . . . Exploration | -11 -10 -10 -10 -9 -8 -7 -7 ------------- Run | Yrd Mat Min Exi Min Mat Fac Sto Turns Passed 4541 | 65 514 182 394 600 1385 993 408 Spaces Moved 3484 | 50 246 105 243 347 1351 854 288 Core 37 | 25 . . . . 4 1 7 Treads 966 | 25 246 105 243 347 . . . Legs . | . . . . . . . . Wheels . | . . . . . . . . Hover 724 | . . . . . . 724 . Flight 1757 | . . . . . 1347 129 281 Fastest Speed 30 | 50 160 160 160 160 50 34 30 Average Speed 82 | 105 160 160 160 160 51 48 67 Slowest Speed 550 | 160 160 160 160 160 550 300 109 Overloaded Moves . | . . . . . . . . Propulsion Burnouts . | . . . . . . . . Robots Hopped 13 | . . . . . 13 . . Potential Cave-ins 9 | . . . . . 5 . 4 Cave-ins Triggered 3 | . . . . . 2 . 1 Exploration Rate (%) 43 | 5 57 32 60 64 72 19 42 Regions Visited 7 Branch Regions 4 Pre-discovered Areas 1 | . . . 1 . . . . Known Exits Taken . | . . . . . . . . Unknown Exits Taken 7 | 1 1 1 1 1 1 1 . Scrap Searched 3 | . . 1 . 2 . . . Spaces Dug 32 | . . . . . 15 3 14 Terrain Destroyed 84 | . . 27 . 3 37 3 14 Melee 17 | . . . . . . 3 14 Projectile 34 | . . . . 3 31 . . AOE 33 | . . 27 . . 6 . . Terrain Rammed 3 | . . . . . 3 . . Walls Destroyed . | . . . . . . . . Machines Disabled . | . . . . . . . . Actions | -11 -10 -10 -10 -9 -8 -7 -7 --------- Run | Yrd Mat Min Exi Min Mat Fac Sto Total 4914 | 62 318 112 250 378 1969 1376 449 Wait 1114 | . 18 . . 6 529 453 108 Move 3450 | 49 245 104 242 346 1323 853 288 Hop 13 | . . . . . 13 . . Pick Up 47 | 7 3 . 2 4 15 11 5 Fast Attach 10 | 1 . . . . 3 3 3 Attach 33 | 5 1 . 1 3 7 13 3 Detach 6 | . . . . . 1 3 2 Swap 11 | . 2 . 1 2 3 2 1 Drop 28 | . 1 . 4 . 7 9 7 Fire 121 | . 47 5 . 8 61 . . Melee 64 | . . . . . 3 29 32 Ram 3 | . . . . . 3 . . Kick . | . . . . . . . . Crush 13 | . 1 3 . 9 . . . Escape Stasis 1 | . . . . . 1 . . Rewire . | . . . . . . . . Trap . | . . . . . . . . Miscellaneous . | . . . . . . . . Route ------- -11/Scrapyard -10/Materials (discovered 2 exits: [*Mat] / [*Min]) -10/Mines (discovered 2 exits: [*Mat] / *Exi) -10/Exiles -9/Mines -8/Materials -7/Factory (discovered 2 exits: [*Fac] / *Sto) -7/Storage History --------- Turn | Location | Event 2 | -11/Scrapyard | Met Revision 17 7 | -11/Scrapyard | Discovered new exit (range 16) 66 | -11/Scrapyard | Entered Materials 309 | -10/Materials | Build established: Mutant 474 | -10/Materials | Discovered new exit (range 8) 559 | -10/Materials | Discovered new exit (range 6) 580 | -10/Materials | Entered Mines 715 | -10/Mines | Discovered new exit (range 12) 755 | -10/Mines | Deemed a non-threat by the Exiles lab entrance 755 | -10/Mines | Discovered new exit (range 5) 762 | -10/Mines | Entered Exiles 801 | -10/Exiles | Met 8R-AWN 830 | -10/Exiles | Met EX-HEX 889 | -10/Exiles | Met EX-BIN 908 | -10/Exiles | Aligned with FarCom system 910 | -10/Exiles | Given EX-Vault access code 948 | -10/Exiles | Opened EX-Vault 960 | -10/Exiles | Found Flying Fortress v7 993 | -10/Exiles | Warned to stay clear of 0b10 Research branches 1036 | -10/Exiles | Met EX-DEC 1051 | -10/Exiles | Learned location of Zion (-7) 1137 | -10/Exiles | Discovered new exit (range 14) 1156 | -10/Exiles | Left Exiles lab with Flying Fortress v7 1156 | -10/Exiles | Entered Mines 1188 | -9/Mines | Found the Drone Emporium 1198 | -9/Mines | Learned 2 Materials zone layouts 1202 | -9/Mines | Found Prototype Device 1206 | -9/Mines | Met a Derelict bent on vengeance 1333 | -9/Mines | Assembled infested the area 1656 | -9/Mines | A weapon hastily lodged in a ceiling crevice suddenly fell to the ground 1732 | -9/Mines | Discovered new exit (range 14) 1756 | -9/Mines | Entered Materials 1756 | -8/Materials | Evolved 4 slots: Propulsion x2, Utility x2 1759 | -8/Materials | Identified Bomb Drone Bay 2163 | -8/Materials | Build established: Hacker-Mutant 2956 | -8/Materials | Search patrols dispatched 3094 | -8/Materials | Crushed by falling debris 3120 | -8/Materials | Crushed by falling debris 3120 | -8/Materials | Core integrity fell below 50% 3120 | -8/Materials | System corruption reached 10% 3130 | -8/Materials | Discovered new exit (range 3) 3141 | -8/Materials | Entered Factory 3141 | -7/Factory | Evolved 2 slots: Utility x2 3186 | -7/Factory | Discovered new exit (range 8) 3314 | -7/Factory | Fabricated Aerolev Unit? 3497 | -7/Factory | Fabricated Hacking Suite? 3968 | -7/Factory | Lost 6 parts (1p4n1u) 4027 | -7/Factory | Fabricated Hacking Suite? 4128 | -7/Factory | Discovered new exit (range 5) 4134 | -7/Factory | Entered Storage 4208 | -7/Storage | Found Prototype Launcher 4209 | -7/Storage | Identified Rocket Array 4389 | -7/Storage | Core integrity fell below 50% 4524 | -7/Storage | Core integrity fell below 20% 4543 | -7/Storage | Crushed by falling debris 4543 | -7/Storage | Smashed by cave-in Last Messages --------------- A bubble of electromagnetic force engulfs the area. U-05 Engineer lays Concrete. P-60 Hacker resets M-13 Machinist, system corruption cleaned. U-05 Engineer lays Concrete. Sneak attack on P-60 Hacker. Destroyed Gravmag System. U-05 Engineer lays Concrete. VTOL Module destroyed. U-05 Engineer lays Concrete. Cld. VTOL Module destroyed. Hvy. Deuterium Engine destroyed. Hacking Suite destroyed. P-60 Hacker destroyed. ALERT: Potential suspicious activity detected, Programmers report to Storage Zone 3B. U-05 Engineer builds a Wall. The unstable cave ceiling collapses. Crushed by falling debris. Map ----- +----------------------------------------------------+ | ????????????????????????????### ###### ???# # | | ??????????????????????????????# ?????# = ???# # | | ??????????????????????????????#??????# =??# | | ?????????????????????????????????????#########+# | | ?????????????????????????????????????????# | # | | ?????????????????????????????????????????# # | | ????????????????????????????### ##########= + | | ????????????????????????????# # #! # | | ????????????????????????????# #?""""" # ! # | | ??????????????????????????#?# #?""""" #* # | | ????????????????????????? #?# #?""""" # # | | ?????????????s??????????? #?# #? ####### | | ?????????????s??????????? #?# + """"" ???### | | ????????????????????????? #?# # """"" #???### | | ??????????????????#######+### #?""""" #?####% | | ??????????????????# ## #?? #?# | | ?????????????Y????# ## ##??######?# | | ??????????????????# w # ########### "" | | ??????????????????# u]#!"" ^ # | | ??????????????????# %+!T"g ^ + | | ??????????????????# ! [#* g # | | ??????????????????# # ######### # ! | | ??????????????????#= ! ###+###???????# # | | ??????????????????# % u # ????????# ###"T | | ??????????????????##########!! """??????# #?#"" | | ??????????????????????#@#??#!! """ Y????# #?### | | ??????????????????????# #??#!! """ ##???# #???? | | ??????????????????????###??# #????# #???? | | ???????????????????????????# ?????? ????? | | ???????????????????????????# "Y" ?????? ????? | | ???????????????????????????# """ #????? ????? | | ???????????????????????????# ???????? ????? | | ???????????????????????????#######???????? ????? | | ??????????????????????????????????????????#????? | | ?????????????????????p?????????????????????????? | | ???????????????????????????Y???????????????????? | | ???????????????????????????????????????????????? | | ??????????????????????????p????????????????????? | | ???????????????????????????????????????????????? | | ???????????????????????????????????????????????? | | ???????????????????????????????????????????????? | | ???????????????????????????????????????????????? | | ???????????????????????????????????????????????? | | ???????????????????????????????????????????????? | | ???????????????????????????????????????????????? | | ???????????????????????????????????????????????? | | ???????????????????????????????????????????????? | | ???????????????????????????????????????????????? | | ???????????????????????????????????????????????? | | ???????????????????????????????????????????????? | +----------------------------------------------------+ Best States ------------- Heat Dissipation 34 Energy Generation 18 Energy Capacity 800 Matter Stores 339 Matter Capacity 450 Sight Range 16 Terrain Scan Density 10 ECM Strength 2 Jamming Range 12 Evasion (%) 64 Recoil Reduction 2 Offensive Hacking 30 Defensive Hacking 20 Item Schematics ----------------- Hacking Suite | -8/Materials | Scanalyzed Aerolev Unit | -8/Materials | Scanalyzed Robot Schematics ------------------ None Fabricated ------------ Aerolev Unit | x1 | -7/Factory Hacking Suite | x1 | -7/Factory Hacking Suite | x1 | -7/Factory Repaired ---------- Nothing Studied --------- None Alien Tech Used ----------------- None Achievements -------------- No Signal Suspicious Challenges ------------ None Game ------ Seed PointyHoverStatue Manual? 0 Play Time 00:53:08 Cumulative 17.3 hours Start 2026.01.24 @ 11:01:51 End 2026.01.24 @ 12:26:35 Sessions 1 Manual Loads 0 Difficulty Rogue Special Mode None Game No. 28 Rogue 28 Adventurer 0 Explorer 0 Win Type - Total 0 Types 0/0/0/0/0/0/0/0/0/0 Lore% 13 Gallery% 21 Achievement% 19 Wizard Run 0 Options --------- Layout 2 ASCII 0 Keyboard 0 Movement Mouse Keybinds 0 Fullscreen 1 Font 24/Smallcaps Map View 50x44 Zoom Use 0% Tactical HUD 0 Map Filters NONE Filters NONE Steam 1 RUN: 1ece40ec-8fb4-4bf7-86b0-dac48c0b9e4a